fUSD/lending_fUSD_20250211
["ID","MTS","AMOUNT","RATE_DAILY","PERIOD"]
[352702159,1739255448343,-500.0,0.00011095,2]
[352702160,1739255448355,-500.0,0.00011095,2]
[352702161,1739255448367,-1871.34,0.00011095,2]
[352702162,1739255448379,-2591.95,0.00011095,2]
[352702163,1739255448389,-500.0,0.00011095,2]
[352702164,1739255448400,-1057.86,0.00011095,2]
[352702165,1739255448410,-1643.91,0.00011095,2]
[352702166,1739255448421,-2151.64,0.00011095,2]
[352702167,1739255448432,-2093.65,0.00011095,2]
[352702168,1739255448445,-1021.04,0.00011095,2]
[352702169,1739255448456,-1813.32,0.00011095,2]
[352702170,1739255448467,-500.0,0.00011095,2]
[352702171,1739255448478,-500.0,0.00011095,2]
[352702172,1739255448491,-1227.71,0.00011095,2]
[352702173,1739255448502,-2246.17,0.00011095,2]
[352702174,1739255448513,-2090.6,0.00011095,2]
[352702175,1739255448524,-1080.39,0.00011095,2]
[352702176,1739255448536,-1474.48,0.00011095,2]
[352702177,1739255448546,-500.0,0.00011095,2]
[352702178,1739255448558,-500.0,0.00011095,2]
[352702179,1739255448569,-1982.07,0.00011095,2]
[352702180,1739255448580,-2170.8,0.00011095,2]
[352702181,1739255448590,-3956.12,0.00011095,2]
[352702182,1739255448602,-2597.31,0.00011095,2]
[352702183,1739255448615,-913.8,0.00011095,2]
[352702184,1739255448627,-1626.38,0.00011095,2]
[352702185,1739255448640,-714.61,0.00011095,2]
[352702186,1739255448651,-2190.37,0.00011095,2]
[352702187,1739255448663,-6619.59,0.00011095,2]
[352702188,1739255448673,-1441.45,0.00011095,2]
[352702189,1739255448684,-500.0,0.00011095,2]
[352702190,1739255448694,-1264.63,0.00011095,2]
[352702191,1739255448705,-500.0,0.00011095,2]
[352702192,1739255448716,-657.06,0.00011095,2]
[352702193,1739255448726,-2474.58,0.00011095,2]
[352702194,1739255448737,-1483.2,0.00011095,2]
[352702195,1739255448748,-3251.33,0.00011095,2]
[352702196,1739255448759,-914.88,0.00011095,2]
[352702197,1739255448770,-1729.11,0.00011095,2]
[352702198,1739255448780,-1864.25,0.00011095,2]
[352702199,1739255448791,-2358.98,0.00011095,2]
[352702200,1739255448802,-2296.9,0.00011095,2]
[352702201,1739255448812,-901.04,0.00011095,2]
[352702202,1739255448823,-2960.85,0.00011095,2]
[352702203,1739255448834,-6059.63,0.00011095,2]
[352702204,1739255448846,-2298.2,0.00011095,2]
[352702205,1739255448858,-502.25,0.00011095,2]
[352702206,1739255448870,-1904.03,0.00011095,2]
[352702207,1739255448880,-2350.1,0.00011095,2]
[352702208,1739255448890,-2889.29,0.00011095,2]
[352702209,1739255448901,-1808.58,0.00011095,2]
[352702210,1739255448911,-500.0,0.00011095,2]
[352702211,1739255448922,-970.68,0.00011095,2]
[352702212,1739255448933,-500.0,0.00011095,2]
[352702213,1739255448942,-500.0,0.00011095,2]
[352702214,1739255448953,-1191.85,0.00011095,2]
[352702215,1739255448963,-1214.03,0.00011095,2]
[352702216,1739255448974,-4410.46,0.00011095,2]
[352702217,1739255448984,-1246.23,0.00011095,2]
[352702218,1739255448994,-661.41,0.00011095,2]
[352702219,1739255449004,-962.98,0.00011095,2]
[352702220,1739255449015,-500.0,0.00011095,2]
[352702221,1739255449026,-936.12,0.00011095,2]
[352702222,1739255449037,-3307.55,0.00011095,2]
[352702223,1739255449047,-2815.37,0.00011095,2]
[352702224,1739255449057,-157.80777744,0.00011095,2]
[352702225,1739255449067,-500.0,0.00011095,2]
[352702226,1739255449078,-1512.82,0.00011095,2]
[352702227,1739255449088,-1944.47,0.00011095,2]
[352702228,1739255449098,-1288.89,0.00011095,2]
[352702229,1739255449108,-2059.07,0.00011095,2]
[352702230,1739255449119,-863.04,0.00011095,2]
[352702231,1739255449129,-3174.05,0.00011095,2]
[352702232,1739255449139,-900.7,0.00011095,2]
[352702233,1739255449149,-628.22,0.00011095,2]
[352702234,1739255449159,-627.3,0.00011095,2]
[352702235,1739255449170,-1465.41,0.00011095,2]
[352702236,1739255449180,-500.0,0.00011095,2]
[352702237,1739255449191,-500.0,0.00011095,2]
[352702238,1739255449202,-500.0,0.00011095,2]
[352702239,1739255449213,-2622.58,0.00011095,2]
[352702240,1739255449223,-649.91,0.00011095,2]
[352702241,1739255449233,-1329.95,0.00011095,2]
[352702242,1739255449243,-500.0,0.00011095,2]
[352702243,1739255449255,-637.81,0.00011095,2]
[352702244,1739255449265,-500.0,0.00011095,2]
[352702245,1739255449275,-753.01,0.00011095,2]
[352702246,1739255449285,-1251.87,0.00011095,2]
[352702247,1739255449296,-873.02,0.00011095,2]
[352702248,1739255449306,-2067.7,0.00011095,2]
[352702249,1739255449316,-1542.69,0.00011095,2]
[352702250,1739255449326,-542.05,0.00011095,2]
[352702251,1739255449338,-569.84,0.00011095,2]
[352702252,1739255449349,-772.09,0.00011095,2]
[352702253,1739255449359,-4736.69586287,0.00011099,2]
[352702254,1739255449369,-4736.69586278,0.00011099,2]
[352702255,1739255449379,-1000.0,0.000111,2]
[352702256,1739255449389,-159.75812974,0.00011132,2]
[352702257,1739255449399,-200.0,0.00011178,2]
[352702258,1739255449409,-200.0,0.00011178,2]
[352702259,1739255449419,-200.0,0.00011178,2]
[352702260,1739255449430,-631.93395798,0.00011228,3]
[352702261,1739255449441,-533.6,0.0001123,2]
[352702262,1739255449450,-533.6,0.0001123,2]
[352702263,1739255449460,-533.6,0.0001123,2]
[352702264,1739255449470,-533.6,0.00011231,2]
[352702265,1739255449480,-1207.0,0.00011232,2]
[352702266,1739255449489,-776.771773,0.00011232,2]
[352702267,1739255449499,-160.496029,0.00011232,2]
[352702268,1739255449508,-624.151222,0.00011232,2]
[352702269,1739255449518,-241.44252759,0.00011232,2]
[352702270,1739255449528,-500.0,0.00011232,2]
[352702271,1739255449538,-183.44436374,0.00011232,2]
[352702272,1739255449548,-500.0,0.00011232,2]
[352702273,1739255449557,-500.0,0.00011232,2]
[352702274,1739255449566,-500.0,0.00011232,2]
[352702275,1739255449576,-500.0,0.00011232,2]
[352702276,1739255449586,-500.0,0.00011232,2]
[352702277,1739255449595,-500.0,0.00011232,2]
[352702278,1739255449649,-500.0,0.00011232,2]
[352702279,1739255449659,-433.8717655,0.00011232,2]
[352702280,1739255449668,-500.0,0.00011232,2]
[352702281,1739255449678,-500.0,0.00011232,2]
[352702282,1739255449688,-500.0,0.00011232,2]
[352702283,1739255449697,-1210.9548052,0.00011232,2]
[352702284,1739255449707,-500.0,0.00011232,2]
[352702285,1739255449716,-713.08,0.00011232,2]
[352702286,1739255449725,-500.0,0.00011232,2]
[352702287,1739255449734,-1253.11,0.00011232,2]
[352702288,1739255449744,-504.92,0.00011232,2]
[352702289,1739255449753,-558.11,0.00011232,2]
[352702290,1739255449761,-1059.23,0.00011232,2]
[352702291,1739255449771,-500.0,0.00011232,2]
[352702292,1739255449780,-1029.86,0.00011232,2]
[352702293,1739255449790,-500.0,0.00011232,2]
[352702294,1739255449799,-554.9,0.00011232,2]
[352702295,1739255449809,-1075.95,0.00011232,2]
[352702296,1739255449818,-500.0,0.00011232,2]
[352702297,1739255449827,-500.0,0.00011232,2]
[352702298,1739255449837,-870.16,0.00011232,2]
[352702299,1739255449846,-500.0,0.00011232,2]
[352702300,1739255449855,-402.59968046,0.00011232,2]
[352702301,1739255449865,-500.0,0.00011232,2]
[352702302,1739255449874,-500.0,0.00011232,2]
[352702303,1739255449883,-500.0,0.00011232,2]
[352702304,1739255449892,-500.0,0.00011232,2]
[352702305,1739255449901,-1150.82,0.00011232,2]
[352702306,1739255449910,-500.0,0.00011232,2]
[352702307,1739255449919,-500.0,0.00011232,2]
[352702308,1739255449929,-500.0,0.00011232,2]
[352702309,1739255449938,-709.72,0.00011232,2]
[352702310,1739255449947,-768.54,0.00011232,2]
[352702311,1739255449956,-916.5,0.00011232,2]
[352702312,1739255449965,-678.68,0.00011232,2]
[352702313,1739255449974,-804.97,0.00011232,2]
[352702314,1739255449983,-500.0,0.00011232,2]
[352702315,1739255449992,-519.3,0.00011232,2]
[352702316,1739255450002,-613.4,0.00011232,2]
[352702317,1739255450011,-500.0,0.00011232,2]
[352702318,1739255450020,-500.0,0.00011232,2]
[352702319,1739255450030,-687.26,0.00011232,2]
[352702320,1739255450039,-500.0,0.00011232,2]
[352702321,1739255450050,-500.0,0.00011232,2]
[352702322,1739255450060,-507.36,0.00011232,2]
[352702323,1739255450069,-500.0,0.00011232,2]
[352702324,1739255450078,-500.0,0.00011232,2]
[352702325,1739255450087,-500.0,0.00011232,2]
[352702326,1739255450096,-500.0,0.00011232,2]
[352702327,1739255450105,-899.46,0.00011232,2]
[352702328,1739255450116,-500.0,0.00011232,2]
[352702329,1739255450125,-500.0,0.00011232,2]
[352702330,1739255450135,-500.0,0.00011232,2]
[352702331,1739255450144,-791.97,0.00011232,2]
[352702332,1739255450154,-997.29,0.00011232,2]
[352702333,1739255450163,-500.0,0.00011232,2]
[352702334,1739255450172,-500.0,0.00011232,2]
[352702335,1739255450182,-990.63,0.00011232,2]
[352702336,1739255450191,-500.0,0.00011232,2]
[352702337,1739255450201,-641.52,0.00011232,2]
[352702338,1739255450210,-561.6,0.00011232,2]
[352702339,1739255450219,-500.0,0.00011232,2]
[352702340,1739255450229,-500.0,0.00011232,2]
[352702341,1739255450238,-598.39,0.00011232,2]
[352702342,1739255450250,-500.0,0.00011232,2]
[352702343,1739255450259,-757.06,0.00011232,2]
[352702344,1739255450269,-1114.37,0.00011232,2]
[352702345,1739255450278,-586.97746218,0.00011232,2]
[352702346,1739255450287,-509.97,0.00011232,2]
[352702347,1739255450297,-695.56,0.00011232,2]
[352702348,1739255450306,-500.0,0.00011232,2]
[352702349,1739255450316,-836.02,0.00011232,2]
[352702350,1739255450325,-500.0,0.00011232,2]
[352702351,1739255450336,-500.0,0.00011232,2]
[352702352,1739255450345,-500.0,0.00011232,2]
[352702353,1739255450354,-897.46,0.00011232,2]
[352702354,1739255450365,-500.0,0.00011232,2]
[352702355,1739255450374,-653.61,0.00011232,2]
[352702356,1739255450385,-1083.87,0.00011232,2]
[352702357,1739255450395,-500.0,0.00011232,2]
[352702358,1739255450404,-500.0,0.00011232,2]
[352702359,1739255450413,-547.66,0.00011232,2]
[352702360,1739255450423,-500.0,0.00011232,2]
[352702361,1739255450433,-500.0,0.00011232,2]
[352702362,1739255450443,-688.77,0.00011232,2]
[352702363,1739255450452,-791.92,0.00011232,2]
[352702364,1739255450462,-500.0,0.00011232,2]
[352702365,1739255450471,-949.37,0.00011232,2]
[352702366,1739255450480,-929.0,0.00011232,2]
[352702367,1739255450491,-3156.67,0.00011232,2]
[352702368,1739255450502,-828.81,0.00011232,2]
[352702369,1739255450513,-500.0,0.00011232,2]
[352702370,1739255450523,-500.0,0.00011232,2]
[352702371,1739255450532,-500.0,0.00011232,2]
[352702372,1739255450542,-873.48,0.00011232,2]
[352702373,1739255450551,-500.0,0.00011232,2]
[352702374,1739255450560,-1507.42,0.00011232,2]
[352702375,1739255450570,-500.0,0.00011232,2]
[352702376,1739255450579,-500.0,0.00011232,2]
[352702377,1739255450588,-500.0,0.00011232,7]
[352702378,1739255450597,-500.0,0.00011232,2]
[352702379,1739255450607,-1632.54,0.00011232,2]
[352702380,1739255450624,-1379.6,0.00011232,2]
[352702381,1739255450634,-500.0,0.00011232,2]
[352702382,1739255450643,-1917.49,0.00011232,2]
[352702383,1739255450653,-500.0,0.00011232,2]
[352702384,1739255450663,-3152.0,0.00011232,2]
[352702385,1739255450674,-500.0,0.00011232,2]
[352702386,1739255450684,-510.76,0.00011232,2]
[352702387,1739255450694,-1000.0,0.00011232,2]
[352702388,1739255450704,-1436.38,0.00011232,2]
[352702389,1739255450714,-548.74,0.00011232,2]
[352702390,1739255450724,-500.0,0.00011232,2]
[352702391,1739255450734,-1001.97,0.00011232,2]
[352702392,1739255450742,-500.0,0.00011232,2]
[352702393,1739255450751,-1389.83,0.00011232,2]
[352702394,1739255450760,-1844.52,0.00011232,2]
[352702395,1739255450769,-500.0,0.00011232,2]
[352702396,1739255450778,-1168.84,0.00011232,2]
[352702397,1739255450788,-821.01,0.00011232,2]
[352702398,1739255450798,-740.84,0.00011232,2]
[352702399,1739255450807,-1195.62,0.00011232,2]
[352702400,1739255450816,-500.0,0.00011232,2]
[352702401,1739255450826,-1732.91,0.00011232,2]
[352702402,1739255450835,-500.0,0.00011232,2]
[352702403,1739255450845,-500.0,0.00011232,2]
[352702404,1739255450854,-2077.69,0.00011232,2]
[352702405,1739255450864,-965.91,0.00011232,2]
[352702406,1739255450873,-2204.61,0.00011232,2]
[352702407,1739255450882,-1267.5,0.00011232,2]
[352702408,1739255450892,-1647.07,0.00011232,2]
[352702409,1739255450901,-803.13,0.00011232,2]
[352702410,1739255450911,-1667.19,0.00011232,2]
[352702411,1739255450920,-1128.86,0.00011232,2]
[352702412,1739255450929,-853.77,0.00011232,2]
[352702413,1739255450939,-717.76,0.00011232,2]
[352702414,1739255450948,-1175.38,0.00011232,2]
[352702415,1739255450958,-2011.59,0.00011232,2]
[352702416,1739255450967,-567.04,0.00011232,2]
[352702417,1739255450977,-1938.57,0.00011232,2]
[352702418,1739255450987,-2166.07,0.00011232,2]
[352702419,1739255450997,-500.0,0.00011232,2]
[352702420,1739255451007,-500.0,0.00011232,2]
[352702421,1739255451016,-1871.34,0.00011232,2]
[352702422,1739255451025,-2591.95,0.00011232,2]
[352702423,1739255451035,-500.0,0.00011232,2]
[352702424,1739255451045,-1057.86,0.00011232,2]
[352702425,1739255451054,-1643.91,0.00011232,2]
[352702426,1739255451063,-2151.64,0.00011232,2]
[352702427,1739255451073,-2093.65,0.00011232,2]
[352702428,1739255451083,-1021.04,0.00011232,2]
[352702429,1739255451092,-1813.32,0.00011232,2]
[352702430,1739255451101,-500.0,0.00011232,2]
[352702431,1739255451111,-500.0,0.00011232,2]
[352702432,1739255451120,-1227.71,0.00011232,2]
[352702433,1739255451130,-2246.17,0.00011232,2]
[352702434,1739255451139,-2090.6,0.00011232,2]
[352702435,1739255451149,-1080.39,0.00011232,2]
[352702436,1739255451158,-1474.48,0.00011232,2]
[352702437,1739255451168,-500.0,0.00011232,2]
[352702438,1739255451177,-500.0,0.00011232,2]
[352702439,1739255451187,-1982.07,0.00011232,2]
[352702440,1739255451196,-2170.8,0.00011232,2]
[352702441,1739255451206,-3956.12,0.00011232,2]
[352702442,1739255451215,-2597.31,0.00011232,2]
[352702443,1739255451224,-913.8,0.00011232,2]
[352702444,1739255451234,-1626.38,0.00011232,2]
[352702445,1739255451243,-714.61,0.00011232,2]
[352702446,1739255451253,-2190.37,0.00011232,2]
[352702447,1739255451265,-6619.59,0.00011232,2]
[352702448,1739255451274,-1441.45,0.00011232,2]
[352702449,1739255451283,-1264.63,0.00011232,2]
[352702450,1739255451293,-500.0,0.00011232,2]
[352702451,1739255451304,-657.06,0.00011232,2]
[352702452,1739255451313,-2474.58,0.00011232,2]
[352702453,1739255451323,-1483.2,0.00011232,2]
[352702454,1739255451334,-3251.33,0.00011232,2]
[352702455,1739255451344,-914.88,0.00011232,2]
[352702456,1739255451354,-1729.11,0.00011232,2]
[352702457,1739255451363,-1864.25,0.00011232,2]
[352702458,1739255451373,-2358.98,0.00011232,2]
[352702459,1739255451383,-2296.9,0.00011232,2]
[352702460,1739255451393,-901.04,0.00011232,2]
[352702461,1739255451402,-2960.85,0.00011232,2]
[352702462,1739255451412,-6059.63,0.00011232,2]
[352702463,1739255451423,-2298.2,0.00011232,2]
[352702464,1739255451432,-502.25,0.00011232,2]
[352702465,1739255451442,-1904.03,0.00011232,2]
[352702466,1739255451451,-2350.1,0.00011232,2]
[352702467,1739255451461,-2889.29,0.00011232,2]
[352702468,1739255451470,-1808.58,0.00011232,2]
[352702469,1739255451480,-292.71534394,0.00011232,2]
[352702470,1739255451489,-970.68,0.00011232,2]
[352702471,1739255451499,-500.0,0.00011232,2]
[352702472,1739255451509,-500.0,0.00011232,2]
[352702473,1739255451519,-1191.85,0.00011232,2]
[352702474,1739255451528,-1214.03,0.00011232,2]
[352702475,1739255451537,-4410.46,0.00011232,2]
[352702476,1739255451546,-1246.23,0.00011232,2]
[352702477,1739255451555,-661.41,0.00011232,2]
[352702478,1739255451565,-962.98,0.00011232,2]
[352702479,1739255451574,-500.0,0.00011232,2]
[352702480,1739255451583,-936.12,0.00011232,2]
[352702481,1739255451593,-3307.55,0.00011232,2]
[352702482,1739255451603,-2815.37,0.00011232,2]
[352702483,1739255451612,-500.0,0.00011232,2]
[352702484,1739255451622,-1512.82,0.00011232,2]
[352702485,1739255451632,-1944.47,0.00011232,2]
[352702486,1739255451641,-1288.89,0.00011232,2]
[352702487,1739255451651,-2059.07,0.00011232,2]
[352702488,1739255451660,-863.04,0.00011232,2]
[352702489,1739255451669,-3174.05,0.00011232,2]
[352702490,1739255451678,-900.7,0.00011232,2]
[352702491,1739255451687,-628.22,0.00011232,2]
[352702492,1739255451697,-627.3,0.00011232,2]
[352702493,1739255451706,-1465.41,0.00011232,2]
[352702494,1739255451715,-500.0,0.00011232,2]
[352702495,1739255451724,-500.0,0.00011232,2]
[352702496,1739255451733,-500.0,0.00011232,2]
[352702497,1739255451743,-2622.58,0.00011232,2]
[352702498,1739255451752,-649.91,0.00011232,2]
[352702499,1739255451761,-1329.95,0.00011232,2]
[352702500,1739255451770,-500.0,0.00011232,2]
[352702501,1739255451779,-637.81,0.00011232,2]
[352702502,1739255451788,-500.0,0.00011232,2]
[352702503,1739255451796,-753.01,0.00011232,2]
[352702504,1739255451806,-1251.87,0.00011232,2]
[352702505,1739255451815,-873.02,0.00011232,2]
[352702506,1739255451824,-2067.7,0.00011232,2]
[352702507,1739255451833,-1542.69,0.00011232,2]
[352702508,1739255451842,-542.05,0.00011232,2]
[352702509,1739255451851,-569.84,0.00011232,2]
[352702510,1739255451861,-772.09,0.00011232,2]
[352702511,1739255451870,-150.42,0.00011235,2]
[352702512,1739255451880,-208.0,0.0001124,2]
[352702513,1739255451889,-174.08611888,0.00011242,2]
[352702514,1739255451899,-700.33639774,0.0001127,2]
[352702515,1739255451909,-11740.2104184,0.00011273,2]
[352702516,1739255451918,-1000.0,0.00011286,2]
[352702517,1739255451927,-200.0,0.0001129,2]
[352702518,1739255451936,-200.0,0.0001129,2]
[352702519,1739255451946,-200.0,0.0001129,2]
[352702520,1739255451955,-431.7357272,0.00011297,2]
[352702521,1739255451964,-4736.69586278,0.00011301,2]
[352702522,1739255451973,-681.4065028,0.0001132,2]
[352702523,1739255451982,-533.6,0.00011327,2]
[352702524,1739255451991,-37676.20108951,0.00011327,2]
[352702525,1739255452001,-1827.0,0.00011342,2]
[352702526,1739255452011,-2955.0,0.00011342,2]
[352702527,1739255452020,-907.0,0.00011342,2]
[352702528,1739255452029,-1271.191,0.00011342,2]
[352702529,1739255452039,-783.0,0.00011342,2]
[352702530,1739255452048,-545.834,0.00011342,2]
[352702531,1739255452058,-1109.0,0.00011342,2]
[352702532,1739255452067,-1275.473,0.00011342,2]
[352702533,1739255452076,-639.0,0.00011342,2]
[352702534,1739255452085,-3914.0,0.00011342,2]
[352702535,1739255452095,-150.0,0.00011342,2]
[352702536,1739255452104,-2024.0,0.00011342,2]
[352702537,1739255452114,-1008.0,0.00011342,2]
[352702538,1739255452123,-533.6,0.00011368,2]
[352702539,1739255452132,-776.771773,0.00011369,2]
[352702540,1739255452141,-160.496029,0.00011369,2]
[352702541,1739255452151,-624.151222,0.00011369,2]
[352702542,1739255452161,-500.0,0.00011369,2]
[352702543,1739255452170,-500.0,0.00011369,2]
[352702544,1739255452180,-500.0,0.00011369,2]
[352702545,1739255452189,-500.0,0.00011369,2]
[352702546,1739255452199,-500.0,0.00011369,2]
[352702547,1739255452208,-500.0,0.00011369,2]
[352702548,1739255452217,-500.0,0.00011369,2]
[352702549,1739255452227,-500.0,0.00011369,2]
[352702550,1739255452236,-504.2989929,0.00011369,2]
[352702551,1739255452245,-500.0,0.00011369,2]
[352702552,1739255452256,-500.0,0.00011369,2]
[352702553,1739255452266,-500.0,0.00011369,2]
[352702554,1739255452275,-713.08,0.00011369,2]
[352702555,1739255452283,-635.40520392,0.00011369,2]
[352702556,1739255452293,-1253.11,0.00011369,2]
[352702557,1739255452302,-504.92,0.00011369,2]
[352702558,1739255452311,-558.11,0.00011369,2]
[352702559,1739255452319,-1059.23,0.00011369,2]
[352702560,1739255452330,-500.0,0.00011369,2]
[352702561,1739255452339,-1029.86,0.00011369,2]
[352702562,1739255452348,-500.0,0.00011369,2]
[352702563,1739255452357,-554.9,0.00011369,2]
[352702564,1739255452367,-1075.95,0.00011369,2]
[352702565,1739255452376,-500.0,0.00011369,2]
[352702566,1739255452385,-500.0,0.00011369,2]
[352702567,1739255452394,-870.16,0.00011369,2]
[352702568,1739255452403,-500.0,0.00011369,2]
[352702569,1739255452412,-198.81316486,0.00011369,2]
[352702570,1739255452422,-500.0,0.00011369,2]
[352702571,1739255452431,-500.0,0.00011369,2]
[352702572,1739255452441,-500.0,0.00011369,2]
[352702573,1739255452450,-1150.82,0.00011369,2]
[352702574,1739255452459,-500.0,0.00011369,2]
[352702575,1739255452469,-500.0,0.00011369,2]
[352702576,1739255452478,-500.0,0.00011369,2]
[352702577,1739255452487,-709.72,0.00011369,2]
[352702578,1739255452496,-768.54,0.00011369,2]
[352702579,1739255452505,-916.5,0.00011369,2]
[352702580,1739255452515,-678.68,0.00011369,2]
[352702581,1739255452524,-804.97,0.00011369,2]
[352702582,1739255452533,-500.0,0.00011369,2]
[352702583,1739255452542,-519.3,0.00011369,2]
[352702584,1739255452551,-613.4,0.00011369,2]
[352702585,1739255452561,-500.0,0.00011369,2]
[352702586,1739255452570,-500.0,0.00011369,2]
[352702587,1739255452579,-687.26,0.00011369,2]
[352702588,1739255452588,-500.0,0.00011369,2]
[352702589,1739255452598,-500.0,0.00011369,2]
[352702590,1739255452607,-507.36,0.00011369,2]
[352702591,1739255452617,-500.0,0.00011369,2]
[352702592,1739255452627,-500.0,0.00011369,2]
[352702593,1739255452635,-500.0,0.00011369,2]
[352702594,1739255452644,-500.0,0.00011369,2]
[352702595,1739255452653,-899.46,0.00011369,2]
[352702596,1739255452662,-500.0,0.00011369,2]
[352702597,1739255452671,-500.0,0.00011369,2]
[352702598,1739255452680,-500.0,0.00011369,2]
[352702599,1739255452689,-791.97,0.00011369,2]
[352702600,1739255452699,-997.29,0.00011369,2]
[352702601,1739255452707,-500.0,0.00011369,2]
[352702602,1739255452716,-500.0,0.00011369,2]
[352702603,1739255452725,-990.63,0.00011369,2]
[352702604,1739255452735,-500.0,0.00011369,2]
[352702605,1739255452743,-641.52,0.00011369,2]
[352702606,1739255452752,-561.6,0.00011369,2]
[352702607,1739255452762,-500.0,0.00011369,2]
[352702608,1739255452771,-500.0,0.00011369,2]
[352702609,1739255452780,-598.39,0.00011369,2]
[352702610,1739255452789,-500.0,0.00011369,2]
[352702611,1739255452798,-757.06,0.00011369,2]
[352702612,1739255452807,-1114.37,0.00011369,2]
[352702613,1739255452816,-509.97,0.00011369,2]
[352702614,1739255452825,-695.56,0.00011369,2]
[352702615,1739255452834,-500.0,0.00011369,2]
[352702616,1739255452843,-836.02,0.00011369,2]
[352702617,1739255452852,-500.0,0.00011369,2]
[352702618,1739255452861,-500.0,0.00011369,2]
[352702619,1739255452870,-500.0,0.00011369,2]
[352702620,1739255452879,-897.46,0.00011369,2]
[352702621,1739255452888,-500.0,0.00011369,2]
[352702622,1739255452897,-653.61,0.00011369,2]
[352702623,1739255452906,-1083.87,0.00011369,2]
[352702624,1739255452915,-500.0,0.00011369,2]
[352702625,1739255452925,-500.0,0.00011369,2]
[352702626,1739255452934,-547.66,0.00011369,2]
[352702627,1739255452943,-500.0,0.00011369,2]
[352702628,1739255452952,-500.0,0.00011369,2]
[352702629,1739255452961,-688.77,0.00011369,2]
[352702630,1739255452970,-791.92,0.00011369,2]
[352702631,1739255452979,-500.0,0.00011369,2]
[352702632,1739255452988,-949.37,0.00011369,2]
[352702633,1739255452997,-929.0,0.00011369,2]
[352702634,1739255453006,-3156.67,0.00011369,2]
[352702635,1739255453015,-828.81,0.00011369,2]
[352702636,1739255453023,-500.0,0.00011369,2]
[352702637,1739255453033,-500.0,0.00011369,2]
[352702638,1739255453042,-171.36466931,0.00011369,2]
[352702639,1739255453051,-873.48,0.00011369,2]
[352702640,1739255453060,-500.0,0.00011369,2]
[352702641,1739255453070,-1507.42,0.00011369,2]
[352702642,1739255453079,-500.0,0.00011369,2]
[352702643,1739255453088,-500.0,0.00011369,2]
[352702644,1739255453097,-500.0,0.00011369,7]
[352702645,1739255453106,-632.76160809,0.00011369,2]
[352702646,1739255453116,-1632.54,0.00011369,2]
[352702647,1739255453125,-1379.6,0.00011369,2]
[352702648,1739255453134,-500.0,0.00011369,2]
[352702649,1739255453143,-1917.49,0.00011369,2]
[352702650,1739255453152,-500.0,0.00011369,2]
[352702651,1739255453161,-3152.0,0.00011369,2]
[352702652,1739255453170,-500.0,0.00011369,2]
[352702653,1739255453179,-510.76,0.00011369,2]
[352702654,1739255453189,-1000.0,0.00011369,2]
[352702655,1739255453198,-1436.38,0.00011369,2]
[352702656,1739255453208,-548.74,0.00011369,2]
[352702657,1739255453217,-500.0,0.00011369,2]
[352702658,1739255453226,-1001.97,0.00011369,2]